[Event "*** SCC Grand Prix: Titled Tuesday Blitz"]
[Site "Chess.com"]
[Date "2020.06.02"]
[Round "5"]
[White "imdarealist"]
[Black "aNaartjieZA"]
[Result "0-1"]
[WhiteElo "2264"]
[BlackElo "2572"]
[TimeControl "180+1"]
[EndTime "10:55:54 PDT"]
[Termination "aNaartjieZA won by resignation"]

1. d4 {[%clk 0:03:00.9]} 1... Nf6 {[%clk 0:02:59.5]} 2. Bf4 {[%clk 0:03:00.2]}
2... c5 {[%clk 0:02:59.1]} 3. e3 {[%clk 0:03:00.2]} 3... g6 {[%clk 0:02:59]} 4.
Nd2 {[%clk 0:02:59.1]} 4... Bg7 {[%clk 0:02:59.1]} 5. Ngf3 {[%clk 0:02:57.4]}
5... O-O {[%clk 0:02:58.7]} 6. h3 {[%clk 0:02:56.3]} 6... b6 {[%clk 0:02:58.9]}
7. Be2 {[%clk 0:02:53]} 7... Bb7 {[%clk 0:02:59]} 8. O-O {[%clk 0:02:52.7]} 8...
d6 {[%clk 0:02:59.2]} 9. c3 {[%clk 0:02:50.5]} 9... Nbd7 {[%clk 0:02:59]} 10.
Bh2 {[%clk 0:02:48.4]} 10... Rc8 {[%clk 0:02:58.7]} 11. a4 {[%clk 0:02:41.9]}
11... a6 {[%clk 0:02:56.8]} 12. Qb3 {[%clk 0:02:40.1]} 12... Rc7 {[%clk
0:02:53.5]} 13. Rfd1 {[%clk 0:02:35.2]} 13... Qa8 {[%clk 0:02:52.5]} 14. Rac1
{[%clk 0:02:33.8]} 14... Rfc8 {[%clk 0:02:50.9]} 15. Ne1 {[%clk 0:02:30.4]}
15... Bd5 {[%clk 0:02:45.3]} 16. Qa3 {[%clk 0:02:27.8]} 16... cxd4 {[%clk
0:02:42.5]} 17. exd4 {[%clk 0:02:28.7]} 17... Ne4 {[%clk 0:02:38.5]} 18. Nxe4
{[%clk 0:02:21.4]} 18... Bxe4 {[%clk 0:02:38.6]} 19. Bf3 {[%clk 0:02:21.8]}
19... Bxf3 {[%clk 0:02:37.8]} 20. Nxf3 {[%clk 0:02:22.7]} 20... Qb7 {[%clk
0:02:31.7]} 21. Re1 {[%clk 0:02:18.1]} 21... Nf6 {[%clk 0:02:31.8]} 22. Re2
{[%clk 0:02:08.4]} 22... Qd5 {[%clk 0:02:26.5]} 23. Rce1 {[%clk 0:02:05.5]}
23... Bf8 {[%clk 0:02:26.5]} 24. Qb4 {[%clk 0:01:20.3]} 24... Qc6 {[%clk
0:02:25.4]} 25. Qb3 {[%clk 0:01:13.7]} 25... Qc4 {[%clk 0:02:19.2]} 26. Qxb6
{[%clk 0:01:02.4]} 26... Qxa4 {[%clk 0:02:16.8]} 27. Ng5 {[%clk 0:00:52.4]}
27... Nd5 {[%clk 0:02:14.3]} 28. b3 {[%clk 0:00:42.2]} 28... Qa3 {[%clk
0:02:12.2]} 0-1

[Event "*** SCC Grand Prix: Titled Tuesday Blitz"]
[Site "Chess.com"]
[Date "2020.06.02"]
[Round "5"]
[White "Savagelittlemole"]
[Black "Radzio1987"]
[Result "0-1"]
[WhiteElo "2581"]
[BlackElo "2896"]
[TimeControl "180+1"]
[EndTime "10:55:58 PDT"]
[Termination "Radzio1987 won by resignation"]

1. e4 {[%clk 0:03:00.9]} 1... c6 {[%clk 0:02:47.1]} 2. d4 {[%clk 0:02:58.4]}
2... d5 {[%clk 0:02:48]} 3. e5 {[%clk 0:02:57.3]} 3... Bf5 {[%clk 0:02:47.6]} 4.
h4 {[%clk 0:02:54.1]} 4... h5 {[%clk 0:02:47.5]} 5. c4 {[%clk 0:02:54.6]} 5...
e6 {[%clk 0:02:47.4]} 6. Nc3 {[%clk 0:02:55.1]} 6... dxc4 {[%clk 0:02:44.7]} 7.
Bxc4 {[%clk 0:02:54.8]} 7... Be7 {[%clk 0:02:44.8]} 8. Nge2 {[%clk 0:02:54.9]}
8... Nd7 {[%clk 0:02:41.3]} 9. Ng3 {[%clk 0:02:55.2]} 9... Bg6 {[%clk
0:02:40.9]} 10. Nce4 {[%clk 0:02:25.8]} 10... Nb6 {[%clk 0:02:38.4]} 11. Be2
{[%clk 0:02:21.1]} 11... Nh6 {[%clk 0:02:23.7]} 12. Bg5 {[%clk 0:01:38]} 12...
Bxe4 {[%clk 0:02:22]} 13. Nxe4 {[%clk 0:01:35.5]} 13... Nf5 {[%clk 0:02:22.1]}
14. Bxe7 {[%clk 0:01:05.6]} 14... Qxe7 {[%clk 0:02:19.3]} 15. Bxh5 {[%clk
0:01:05.5]} 15... O-O-O {[%clk 0:02:12]} 16. O-O {[%clk 0:00:30.7]} 16... Qxh4
{[%clk 0:02:05.3]} 17. g4 {[%clk 0:00:15.8]} 17... Rxh5 {[%clk 0:02:02]} 18.
gxh5 {[%clk 0:00:15.7]} 18... Rxd4 {[%clk 0:01:57.9]} 19. Nd6+ {[%clk
0:00:12.8]} 19... Nxd6 {[%clk 0:01:57.4]} 0-1

[Event "*** SCC Grand Prix: Titled Tuesday Blitz"]
[Site "Chess.com"]
[Date "2020.06.02"]
[Round "5"]
[White "eCztery"]
[Black "Artem_Sadovsky"]
[Result "0-1"]
[WhiteElo "2365"]
[BlackElo "2525"]
[TimeControl "180+1"]
[EndTime "10:56:08 PDT"]
[Termination "Artem_Sadovsky won by checkmate"]

1. e4 {[%clk 0:03:00.9]} 1... g6 {[%clk 0:02:46.9]} 2. d4 {[%clk 0:02:59.3]}
2... Bg7 {[%clk 0:02:47.8]} 3. Nc3 {[%clk 0:02:59.4]} 3... d6 {[%clk 0:02:43.7]}
4. f4 {[%clk 0:02:59.4]} 4... a6 {[%clk 0:02:43.4]} 5. Nf3 {[%clk 0:02:56]} 5...
b5 {[%clk 0:02:43.9]} 6. Bd3 {[%clk 0:02:52.6]} 6... Bb7 {[%clk 0:02:44.2]} 7.
O-O {[%clk 0:02:50.7]} 7... Nd7 {[%clk 0:02:43.9]} 8. a3 {[%clk 0:02:43.9]} 8...
c5 {[%clk 0:02:44.2]} 9. d5 {[%clk 0:02:40]} 9... Ngf6 {[%clk 0:02:38]} 10. h3
{[%clk 0:02:18.3]} 10... c4 {[%clk 0:02:27.4]} 11. Be2 {[%clk 0:02:18.1]} 11...
Nc5 {[%clk 0:02:26.4]} 12. Nd2 {[%clk 0:01:41.6]} 12... h5 {[%clk 0:02:10.1]}
13. Bf3 {[%clk 0:01:41.7]} 13... h4 {[%clk 0:02:05.8]} 14. Qe1 {[%clk 0:01:31]}
14... Nh5 {[%clk 0:01:47.1]} 15. Qxh4 {[%clk 0:01:21.3]} 15... Bd4+ {[%clk
0:01:47.5]} 16. Kh2 {[%clk 0:01:16.3]} 16... Nxf4 {[%clk 0:01:46]} 17. Qe1
{[%clk 0:00:59.4]} 17... Bc8 {[%clk 0:01:40.7]} 18. h4 {[%clk 0:00:46.4]} 18...
g5 {[%clk 0:01:34.9]} 19. g3 {[%clk 0:00:43.5]} 19... Qd7 {[%clk 0:01:34.4]} 20.
gxf4 {[%clk 0:00:28.3]} 20... Qh3# {[%clk 0:01:33.8]} 0-1

[Event "*** SCC Grand Prix: Titled Tuesday Blitz"]
[Site "Chess.com"]
[Date "2020.06.02"]
[Round "5"]
[White "FabianoCaruana"]
[Black "EugeneRougon"]
[Result "1-0"]
[WhiteElo "3004"]
[BlackElo "2656"]
[TimeControl "180+1"]
[EndTime "10:56:12 PDT"]
[Termination "FabianoCaruana won by resignation"]

1. d4 {[%clk 0:03:00.9]} 1... d5 {[%clk 0:02:59.3]} 2. c4 {[%clk 0:03:00.9]}
2... c6 {[%clk 0:02:59.5]} 3. Nf3 {[%clk 0:03:00.6]} 3... Nf6 {[%clk 0:02:59.6]}
4. e3 {[%clk 0:03:01.2]} 4... e6 {[%clk 0:02:58.8]} 5. Bd3 {[%clk 0:02:59]} 5...
Nbd7 {[%clk 0:02:49.5]} 6. O-O {[%clk 0:02:56.9]} 6... dxc4 {[%clk 0:02:42.4]}
7. Bxc4 {[%clk 0:02:56.9]} 7... Bd6 {[%clk 0:02:38.4]} 8. Nbd2 {[%clk
0:02:52.5]} 8... O-O {[%clk 0:02:30.5]} 9. Bd3 {[%clk 0:02:49]} 9... b5 {[%clk
0:02:08.3]} 10. a4 {[%clk 0:02:42.4]} 10... bxa4 {[%clk 0:01:56.8]} 11. e4
{[%clk 0:02:37.9]} 11... Be7 {[%clk 0:01:44.7]} 12. e5 {[%clk 0:02:32.6]} 12...
Nd5 {[%clk 0:01:43.6]} 13. Ne4 {[%clk 0:02:33]} 13... h6 {[%clk 0:01:32.5]} 14.
Nfd2 {[%clk 0:02:11.9]} 14... c5 {[%clk 0:01:24.2]} 15. Nc4 {[%clk 0:02:10.2]}
15... cxd4 {[%clk 0:01:19.8]} 16. Qh5 {[%clk 0:02:01.6]} 16... f5 {[%clk
0:01:14.2]} 17. Qg6 {[%clk 0:01:42.5]} 17... fxe4 {[%clk 0:00:36.5]} 18. Bxe4
{[%clk 0:01:43.4]} 18... N7f6 {[%clk 0:00:31.1]} 19. exf6 {[%clk 0:01:42]} 19...
Rxf6 {[%clk 0:00:27.2]} 20. Qh7+ {[%clk 0:01:41.4]} 20... Kf7 {[%clk 0:00:26.6]}
21. Ne5+ {[%clk 0:01:41.2]} 21... Ke8 {[%clk 0:00:25.9]} 22. Bg6+ {[%clk
0:01:40.6]} 1-0

[Event "*** SCC Grand Prix: Titled Tuesday Blitz"]
[Site "Chess.com"]
[Date "2020.06.02"]
[Round "5"]
[White "Rodchenkov_Vitalij"]
[Black "politeplayer"]
[Result "0-1"]
[WhiteElo "2435"]
[BlackElo "2249"]
[TimeControl "180+1"]
[EndTime "10:56:12 PDT"]
[Termination "politeplayer won by resignation"]

1. d4 {[%clk 0:03:00.9]} 1... d5 {[%clk 0:02:58.5]} 2. c4 {[%clk 0:02:59.3]}
2... e6 {[%clk 0:02:58.8]} 3. g3 {[%clk 0:02:58.7]} 3... c5 {[%clk 0:02:58.7]}
4. cxd5 {[%clk 0:02:57.3]} 4... cxd4 {[%clk 0:02:56.9]} 5. Nf3 {[%clk
0:02:48.3]} 5... Bb4+ {[%clk 0:02:53]} 6. Bd2 {[%clk 0:02:46.9]} 6... Bc5 {[%clk
0:02:52.2]} 7. Nxd4 {[%clk 0:02:29.5]} 7... Bxd4 {[%clk 0:02:32]} 8. Qa4+ {[%clk
0:02:27.7]} 8... Nc6 {[%clk 0:02:11.6]} 9. dxc6 {[%clk 0:02:03.8]} 9... Bxb2
{[%clk 0:02:10]} 10. cxb7+ {[%clk 0:01:56]} 10... Bd7 {[%clk 0:02:09.6]} 11.
bxa8=Q {[%clk 0:01:53.1]} 11... Qxa8 {[%clk 0:02:06.8]} 12. Qb3 {[%clk
0:01:03.4]} 12... Bxa1 {[%clk 0:02:04.9]} 13. Qf3 {[%clk 0:00:55.5]} 13... Bc6
{[%clk 0:01:58.9]} 14. Qg4 {[%clk 0:00:36.1]} 14... Bxh1 {[%clk 0:01:56]} 15.
Bc3 {[%clk 0:00:36.3]} 15... Bxc3+ {[%clk 0:01:50.8]} 16. Nxc3 {[%clk
0:00:36.7]} 16... Nf6 {[%clk 0:01:50.1]} 17. Qxg7 {[%clk 0:00:34]} 17... Ke7
{[%clk 0:01:49.1]} 18. Qg5 {[%clk 0:00:22]} 18... Rc8 {[%clk 0:01:43.3]} 0-1

[Event "*** SCC Grand Prix: Titled Tuesday Blitz"]
[Site "Chess.com"]
[Date "2020.06.02"]
[Round "5"]
[White "Colombiano07"]
[Black "LisikValera"]
[Result "1-0"]
[WhiteElo "2345"]
[BlackElo "2479"]
[TimeControl "180+1"]
[EndTime "10:56:14 PDT"]
[Termination "Colombiano07 won by resignation"]

1. Nf3 {[%clk 0:03:00.9]} 1... d5 {[%clk 0:02:59.3]} 2. b3 {[%clk 0:03:01.8]}
2... Bg4 {[%clk 0:02:58]} 3. Bb2 {[%clk 0:03:02.7]} 3... Bxf3 {[%clk 0:02:57.7]}
4. exf3 {[%clk 0:03:03.6]} 4... e6 {[%clk 0:02:57.6]} 5. g3 {[%clk 0:03:04.5]}
5... Nf6 {[%clk 0:02:57.7]} 6. Bg2 {[%clk 0:03:05.4]} 6... g6 {[%clk 0:02:57.9]}
7. O-O {[%clk 0:03:06.3]} 7... Bg7 {[%clk 0:02:58.2]} 8. f4 {[%clk 0:03:06.9]}
8... O-O {[%clk 0:02:58]} 9. d3 {[%clk 0:03:07.5]} 9... Nbd7 {[%clk 0:02:57.5]}
10. c4 {[%clk 0:03:07.1]} 10... c6 {[%clk 0:02:57.2]} 11. Nd2 {[%clk 0:03:07.7]}
11... Ne8 {[%clk 0:02:55.1]} 12. Bxg7 {[%clk 0:03:06.7]} 12... Kxg7 {[%clk
0:02:51.8]} 13. Nf3 {[%clk 0:03:07.6]} 13... Nd6 {[%clk 0:02:47.3]} 14. Re1
{[%clk 0:03:06.7]} 14... Nf5 {[%clk 0:02:44.8]} 15. Ne5 {[%clk 0:03:06.8]} 15...
Nxe5 {[%clk 0:02:44.1]} 16. fxe5 {[%clk 0:03:07.7]} 16... dxc4 {[%clk
0:02:42.1]} 17. dxc4 {[%clk 0:03:08.6]} 17... Qxd1 {[%clk 0:02:41.5]} 18. Raxd1
{[%clk 0:03:09.5]} 18... Rfd8 {[%clk 0:02:41.3]} 19. Be4 {[%clk 0:03:09.2]}
19... Ne7 {[%clk 0:02:38]} 20. Kf1 {[%clk 0:03:08.7]} 20... Kf8 {[%clk
0:02:37.3]} 21. Ke2 {[%clk 0:03:09.1]} 21... Ke8 {[%clk 0:02:37.5]} 22. g4
{[%clk 0:03:09.5]} 22... Rxd1 {[%clk 0:02:36.8]} 23. Rxd1 {[%clk 0:03:10.4]}
23... Rd8 {[%clk 0:02:36.8]} 24. Rxd8+ {[%clk 0:03:11]} 24... Kxd8 {[%clk
0:02:36.7]} 25. f4 {[%clk 0:03:11.9]} 25... b6 {[%clk 0:02:32.1]} 26. b4 {[%clk
0:03:09.9]} 26... c5 {[%clk 0:02:30.8]} 27. b5 {[%clk 0:03:10.4]} 27... Ke8
{[%clk 0:02:27.9]} 28. a4 {[%clk 0:03:08]} 28... Kf8 {[%clk 0:02:27.1]} 29. Kd3
{[%clk 0:03:07.1]} 29... Kg7 {[%clk 0:02:26.7]} 30. h3 {[%clk 0:03:07.5]} 30...
f6 {[%clk 0:02:25]} 31. Ke3 {[%clk 0:03:05.2]} 31... g5 {[%clk 0:02:17.4]} 32.
exf6+ {[%clk 0:02:41.1]} 32... Kxf6 {[%clk 0:02:16.9]} 33. Bd3 {[%clk 0:02:42]}
33... Nc8 {[%clk 0:02:09.1]} 34. fxg5+ {[%clk 0:02:32.6]} 34... Kxg5 {[%clk
0:02:10]} 35. Ke4 {[%clk 0:02:30.2]} 35... Kf6 {[%clk 0:02:08]} 36. g5+ {[%clk
0:02:28.5]} 36... Kxg5 {[%clk 0:02:07.7]} 37. Ke5 {[%clk 0:02:28.7]} 37... Ne7
{[%clk 0:01:59.2]} 38. Bxh7 {[%clk 0:02:27.4]} 38... Nf5 {[%clk 0:01:58.2]} 39.
Kxe6 {[%clk 0:02:14]} 39... Ne3 {[%clk 0:01:54.3]} 40. Bd3 {[%clk 0:02:13.8]}
40... Nd1 {[%clk 0:01:54.5]} 41. Bc2 {[%clk 0:02:07.1]} 41... Ne3 {[%clk
0:01:52.2]} 42. Bb3 {[%clk 0:02:06.6]} 42... Nf1 {[%clk 0:01:27.1]} 43. Kd6
{[%clk 0:02:04]} 43... Nd2 {[%clk 0:01:27.1]} 44. Ba2 {[%clk 0:02:02.2]} 44...
Kh4 {[%clk 0:01:06.4]} 45. Kc6 {[%clk 0:02:01.5]} 45... Ne4 {[%clk 0:01:06.9]}
46. Kb7 {[%clk 0:01:56]} 46... Nc3 {[%clk 0:01:06.8]} 47. Bb3 {[%clk 0:01:55.4]}
47... Kxh3 {[%clk 0:01:06.4]} 48. Kxa7 {[%clk 0:01:55.2]} 1-0

[Event "*** SCC Grand Prix: Titled Tuesday Blitz"]
[Site "Chess.com"]
[Date "2020.06.02"]
[Round "5"]
[White "jerry_77"]
[Black "BabyFacedAssasin"]
[Result "0-1"]
[WhiteElo "2473"]
[BlackElo "2333"]
[TimeControl "180+1"]
[EndTime "10:56:14 PDT"]
[Termination "BabyFacedAssasin won by resignation"]

1. e4 {[%clk 0:03:00.9]} 1... e6 {[%clk 0:02:57.8]} 2. Nf3 {[%clk 0:03:00.6]}
2... d5 {[%clk 0:02:55.9]} 3. Nc3 {[%clk 0:03:01.5]} 3... Nf6 {[%clk 0:02:55.4]}
4. e5 {[%clk 0:03:01.2]} 4... Nfd7 {[%clk 0:02:54.7]} 5. d4 {[%clk 0:03:02.1]}
5... c5 {[%clk 0:02:53.3]} 6. Ne2 {[%clk 0:03:03]} 6... Nc6 {[%clk 0:02:52]} 7.
c3 {[%clk 0:03:02.1]} 7... Be7 {[%clk 0:02:50.5]} 8. Nf4 {[%clk 0:03:01.3]} 8...
O-O {[%clk 0:02:48.3]} 9. h4 {[%clk 0:02:58.5]} 9... Rb8 {[%clk 0:02:22.8]} 10.
Bd3 {[%clk 0:02:56.7]} 10... h6 {[%clk 0:02:15]} 11. g4 {[%clk 0:02:54.6]} 11...
cxd4 {[%clk 0:02:04.6]} 12. cxd4 {[%clk 0:02:46.1]} 12... Nxd4 {[%clk
0:01:34.1]} 13. Nxd4 {[%clk 0:02:37.5]} 13... Nxe5 {[%clk 0:01:34.1]} 14. Bb1
{[%clk 0:02:31.4]} 14... Bxh4 {[%clk 0:01:27.2]} 15. Nf3 {[%clk 0:02:15.9]}
15... Nxf3+ {[%clk 0:01:23]} 16. Qxf3 {[%clk 0:02:16.8]} 16... Bg5 {[%clk
0:01:19.5]} 17. Qd3 {[%clk 0:02:12.3]} 17... f5 {[%clk 0:01:13.2]} 18. Ng6
{[%clk 0:02:08.6]} 18... Bxc1 {[%clk 0:01:03.8]} 19. Nxf8 {[%clk 0:02:08]} 19...
Qxf8 {[%clk 0:00:58.4]} 20. gxf5 {[%clk 0:02:02.2]} 20... Qb4+ {[%clk
0:00:51.3]} 21. Kf1 {[%clk 0:01:58.1]} 21... Bxb2 {[%clk 0:00:37.1]} 22. fxe6
{[%clk 0:01:55.8]} 22... Qc4 {[%clk 0:00:36.1]} 23. Qxc4 {[%clk 0:01:53.3]}
23... dxc4 {[%clk 0:00:34.5]} 24. Be4 {[%clk 0:01:38.3]} 24... Bxa1 {[%clk
0:00:30.9]} 25. Bd5 {[%clk 0:01:38.4]} 25... Kf8 {[%clk 0:00:27.2]} 0-1

[Event "*** SCC Grand Prix: Titled Tuesday Blitz"]
[Site "Chess.com"]
[Date "2020.06.02"]
[Round "5"]
[White "JuliaEfremova"]
[Black "Baron_von_Koenig"]
[Result "1-0"]
[WhiteElo "2234"]
[BlackElo "2421"]
[TimeControl "180+1"]
[EndTime "10:56:23 PDT"]
[Termination "JuliaEfremova won by resignation"]

1. d4 {[%clk 0:03:00.9]} 1... Nc6 {[%clk 0:02:59.7]} 2. Bf4 {[%clk 0:03:00.4]}
2... e5 {[%clk 0:02:55.8]} 3. dxe5 {[%clk 0:02:56.2]} 3... g5 {[%clk 0:02:55.4]}
4. Bd2 {[%clk 0:02:51.6]} 4... Bg7 {[%clk 0:02:51.6]} 5. Nc3 {[%clk 0:02:49.5]}
5... Nxe5 {[%clk 0:02:49.4]} 6. Nf3 {[%clk 0:02:49.1]} 6... g4 {[%clk 0:02:39]}
7. Nxe5 {[%clk 0:02:47.5]} 7... Bxe5 {[%clk 0:02:39.5]} 8. e4 {[%clk 0:02:46.5]}
8... d6 {[%clk 0:02:39.2]} 9. Bc4 {[%clk 0:02:38]} 9... c6 {[%clk 0:02:33.7]}
10. Qe2 {[%clk 0:02:28.8]} 10... b5 {[%clk 0:02:29.8]} 11. Bb3 {[%clk
0:02:25.2]} 11... a5 {[%clk 0:02:29.8]} 12. a3 {[%clk 0:02:19.7]} 12... a4
{[%clk 0:02:11.4]} 13. Ba2 {[%clk 0:02:18.7]} 13... Bd7 {[%clk 0:02:03.4]} 14.
O-O-O {[%clk 0:02:15.5]} 14... Qf6 {[%clk 0:01:59]} 15. h4 {[%clk 0:02:09.6]}
15... gxh3 {[%clk 0:01:54.8]} 16. gxh3 {[%clk 0:02:00]} 16... O-O-O {[%clk
0:01:53.9]} 17. h4 {[%clk 0:01:50.9]} 17... h6 {[%clk 0:01:53]} 18. Qe3 {[%clk
0:01:43.2]} 18... Bd4 {[%clk 0:01:50.7]} 19. Qd3 {[%clk 0:01:36.7]} 19... Bc5
{[%clk 0:01:31.9]} 20. f4 {[%clk 0:01:34.5]} 20... Ne7 {[%clk 0:01:30.7]} 21. e5
{[%clk 0:01:25.6]} 21... dxe5 {[%clk 0:01:27.3]} 22. Ne4 {[%clk 0:01:25.7]}
22... Bf5 {[%clk 0:01:11.3]} 23. Qxd8+ {[%clk 0:01:16.9]} 23... Rxd8 {[%clk
0:01:08.5]} 24. Nxf6 {[%clk 0:01:17.4]} 24... Rd6 {[%clk 0:00:58.2]} 25. fxe5
{[%clk 0:01:09.6]} 25... Rd4 {[%clk 0:00:57.7]} 1-0

[Event "*** SCC Grand Prix: Titled Tuesday Blitz"]
[Site "Chess.com"]
[Date "2020.06.02"]
[Round "5"]
[White "WIDBIFS"]
[Black "DariaVoit"]
[Result "1-0"]
[WhiteElo "2724"]
[BlackElo "2549"]
[TimeControl "180+1"]
[EndTime "10:56:24 PDT"]
[Termination "WIDBIFS won on time"]

1. d4 {[%clk 0:03:00.9]} 1... Nf6 {[%clk 0:02:58.4]} 2. Nf3 {[%clk 0:03:00.9]}
2... e6 {[%clk 0:02:58.7]} 3. Bf4 {[%clk 0:03:01.1]} 3... c5 {[%clk 0:02:57.9]}
4. e3 {[%clk 0:03:01.4]} 4... Nc6 {[%clk 0:02:58.3]} 5. Nbd2 {[%clk 0:03:01.7]}
5... d5 {[%clk 0:02:58.6]} 6. c3 {[%clk 0:03:02]} 6... Bd6 {[%clk 0:02:59]} 7.
Bg3 {[%clk 0:03:02.7]} 7... O-O {[%clk 0:02:58.3]} 8. Bd3 {[%clk 0:03:03]} 8...
b6 {[%clk 0:02:57.9]} 9. Qe2 {[%clk 0:03:03.3]} 9... Bb7 {[%clk 0:02:53.9]} 10.
Rd1 {[%clk 0:03:03.4]} 10... Re8 {[%clk 0:02:53.5]} 11. e4 {[%clk 0:03:02.6]}
11... Be7 {[%clk 0:02:53.9]} 12. e5 {[%clk 0:03:02.6]} 12... Nh5 {[%clk
0:02:53.6]} 13. h4 {[%clk 0:03:03.1]} 13... Nxg3 {[%clk 0:02:48.4]} 14. fxg3
{[%clk 0:03:02.4]} 14... h6 {[%clk 0:02:48.3]} 15. O-O {[%clk 0:02:53.2]} 15...
cxd4 {[%clk 0:02:46.2]} 16. Nxd4 {[%clk 0:02:52.1]} 16... Nxd4 {[%clk
0:02:29.5]} 17. cxd4 {[%clk 0:02:53]} 17... a5 {[%clk 0:02:29.6]} 18. Rxf7
{[%clk 0:02:06.4]} 18... Kxf7 {[%clk 0:02:06.9]} 19. Qh5+ {[%clk 0:02:06]} 19...
Kg8 {[%clk 0:01:24.6]} 20. Qg6 {[%clk 0:02:05.9]} 20... Bf6 {[%clk 0:00:11.3]}
21. Rf1 {[%clk 0:02:05.2]} 21... Ba6 {[%clk 0:00:05.9]} 22. exf6 {[%clk
0:01:57.9]} 22... Qd7 {[%clk 0:00:02.1]} 23. Qh7+ {[%clk 0:01:52]} 1-0

[Event "*** SCC Grand Prix: Titled Tuesday Blitz"]
[Site "Chess.com"]
[Date "2020.06.02"]
[Round "5"]
[White "kleopl"]
[Black "Olga_Zhuravleva"]
[Result "1-0"]
[WhiteElo "2466"]
[BlackElo "2255"]
[TimeControl "180+1"]
[EndTime "10:56:29 PDT"]
[Termination "kleopl won by checkmate"]

1. c4 {[%clk 0:03:00.9]} 1... e5 {[%clk 0:02:59.5]} 2. Nc3 {[%clk 0:03:00]} 2...
Nf6 {[%clk 0:03:00]} 3. Nf3 {[%clk 0:02:59.7]} 3... Nc6 {[%clk 0:02:58.8]} 4. e4
{[%clk 0:02:59.8]} 4... Bc5 {[%clk 0:02:54.6]} 5. Nxe5 {[%clk 0:02:59.1]} 5...
Nxe5 {[%clk 0:02:46.9]} 6. d4 {[%clk 0:02:58.5]} 6... Bxd4 {[%clk 0:02:46.9]} 7.
Qxd4 {[%clk 0:02:57.8]} 7... Nc6 {[%clk 0:02:47]} 8. Qd2 {[%clk 0:02:57.9]} 8...
d6 {[%clk 0:02:46.1]} 9. b3 {[%clk 0:02:54.6]} 9... O-O {[%clk 0:02:45.8]} 10.
Bb2 {[%clk 0:02:54.3]} 10... Re8 {[%clk 0:02:46.4]} 11. Bd3 {[%clk 0:02:54.3]}
11... Bf5 {[%clk 0:02:32.2]} 12. f3 {[%clk 0:02:44]} 12... Bg6 {[%clk
0:02:30.4]} 13. O-O {[%clk 0:02:41.8]} 13... Nd7 {[%clk 0:02:30.8]} 14. Nd5
{[%clk 0:02:38.8]} 14... Nde5 {[%clk 0:02:28.1]} 15. Rae1 {[%clk 0:02:34.7]}
15... Nxd3 {[%clk 0:02:25.5]} 16. Qxd3 {[%clk 0:02:34.3]} 16... f6 {[%clk
0:02:25.1]} 17. Kh1 {[%clk 0:02:32.7]} 17... Bf7 {[%clk 0:02:25.1]} 18. Ne3
{[%clk 0:02:30.6]} 18... Nb4 {[%clk 0:02:17.2]} 19. Qd2 {[%clk 0:02:27.7]} 19...
Nc6 {[%clk 0:02:14.7]} 20. Nf5 {[%clk 0:02:25.4]} 20... Bg6 {[%clk 0:02:13]} 21.
Ne3 {[%clk 0:02:24.6]} 21... Qd7 {[%clk 0:02:10.7]} 22. Rd1 {[%clk 0:02:24.5]}
22... Qe6 {[%clk 0:01:59.9]} 23. Nd5 {[%clk 0:02:22.7]} 23... Rac8 {[%clk
0:01:56.2]} 24. Rfe1 {[%clk 0:02:19.8]} 24... Kh8 {[%clk 0:01:54.1]} 25. Qf2
{[%clk 0:02:18.5]} 25... Bf7 {[%clk 0:01:38.6]} 26. Qh4 {[%clk 0:02:16.5]} 26...
Ne5 {[%clk 0:01:19]} 27. h3 {[%clk 0:02:15.2]} 27... Ng6 {[%clk 0:01:16]} 28.
Qg3 {[%clk 0:02:14.2]} 28... c6 {[%clk 0:01:10.3]} 29. Ne3 {[%clk 0:02:11.8]}
29... Rcd8 {[%clk 0:01:05.8]} 30. Re2 {[%clk 0:01:59.7]} 30... Qd7 {[%clk
0:00:44.7]} 31. Red2 {[%clk 0:01:57.3]} 31... Ne5 {[%clk 0:00:25.4]} 32. Nf5
{[%clk 0:01:56.3]} 32... d5 {[%clk 0:00:20.5]} 33. Qxg7# {[%clk 0:01:55]} 1-0

[Event "*** SCC Grand Prix: Titled Tuesday Blitz"]
[Site "Chess.com"]
[Date "2020.06.02"]
[Round "5"]
[White "boasovietica"]
[Black "BelaKis"]
[Result "1-0"]
[WhiteElo "2427"]
[BlackElo "2202"]
[TimeControl "180+1"]
[EndTime "10:56:31 PDT"]
[Termination "boasovietica won by resignation"]

1. e4 {[%clk 0:03:00.9]} 1... e5 {[%clk 0:02:57.4]} 2. Nf3 {[%clk 0:03:00.7]}
2... Nc6 {[%clk 0:02:57.3]} 3. Bb5 {[%clk 0:03:00.3]} 3... a6 {[%clk 0:02:56.7]}
4. Ba4 {[%clk 0:02:59.8]} 4... Nf6 {[%clk 0:02:56.2]} 5. O-O {[%clk 0:02:59.3]}
5... Be7 {[%clk 0:02:56.7]} 6. d3 {[%clk 0:02:59.1]} 6... b5 {[%clk 0:02:56.4]}
7. Bb3 {[%clk 0:02:59.2]} 7... d6 {[%clk 0:02:44.3]} 8. a3 {[%clk 0:02:58.2]}
8... O-O {[%clk 0:02:41.1]} 9. Nc3 {[%clk 0:02:58]} 9... Be6 {[%clk 0:02:31.9]}
10. Bg5 {[%clk 0:02:51.4]} 10... Bxb3 {[%clk 0:02:17.7]} 11. cxb3 {[%clk
0:02:51.1]} 11... Nd4 {[%clk 0:01:42.8]} 12. Nxd4 {[%clk 0:02:34.6]} 12... exd4
{[%clk 0:01:43.7]} 13. Ne2 {[%clk 0:02:34.1]} 13... c5 {[%clk 0:01:36.8]} 14.
Bxf6 {[%clk 0:02:27.2]} 14... Bxf6 {[%clk 0:01:35.8]} 15. Nf4 {[%clk 0:02:27.8]}
15... Be7 {[%clk 0:01:22.1]} 16. Nd5 {[%clk 0:02:27.4]} 16... f5 {[%clk
0:01:22.2]} 17. Qf3 {[%clk 0:02:04.6]} 17... f4 {[%clk 0:00:30.4]} 18. Qg4
{[%clk 0:01:44.1]} 18... Bg5 {[%clk 0:00:26.4]} 19. h4 {[%clk 0:01:33.8]} 19...
Bh6 {[%clk 0:00:26.3]} 20. a4 {[%clk 0:01:25.3]} 20... Qc8 {[%clk 0:00:21.5]}
21. Ne7+ {[%clk 0:01:23.4]} 1-0

[Event "*** SCC Grand Prix: Titled Tuesday Blitz"]
[Site "Chess.com"]
[Date "2020.06.02"]
[Round "5"]
[White "Ali_rastbod"]
[Black "amintabatabaei"]
[Result "0-1"]
[WhiteElo "2650"]
[BlackElo "2927"]
[TimeControl "180+1"]
[EndTime "10:56:32 PDT"]
[Termination "amintabatabaei won by resignation"]

1. c4 {[%clk 0:02:38.5]} 1... e5 {[%clk 0:02:58]} 2. Nc3 {[%clk 0:02:34.3]} 2...
Nf6 {[%clk 0:02:58]} 3. e3 {[%clk 0:02:28.3]} 3... Nc6 {[%clk 0:02:57.1]} 4. g4
{[%clk 0:02:27.2]} 4... d5 {[%clk 0:02:56.5]} 5. g5 {[%clk 0:02:27]} 5... d4
{[%clk 0:02:57]} 6. gxf6 {[%clk 0:02:12.2]} 6... dxc3 {[%clk 0:02:56.6]} 7. bxc3
{[%clk 0:02:05.5]} 7... Qxf6 {[%clk 0:02:55.3]} 8. d4 {[%clk 0:02:05.5]} 8...
Be7 {[%clk 0:02:45]} 9. Bg2 {[%clk 0:01:59]} 9... O-O {[%clk 0:02:45]} 10. Qf3
{[%clk 0:01:48.5]} 10... Qg6 {[%clk 0:02:27.8]} 11. Ne2 {[%clk 0:01:27.7]} 11...
Re8 {[%clk 0:02:19.4]} 12. h3 {[%clk 0:01:15.1]} 12... Na5 {[%clk 0:02:13.4]}
13. c5 {[%clk 0:01:08.7]} 13... Bd7 {[%clk 0:01:47.4]} 14. O-O {[%clk
0:00:55.5]} 14... Bb5 {[%clk 0:01:05.3]} 15. Rd1 {[%clk 0:00:42.8]} 15... e4
{[%clk 0:01:00.3]} 0-1